{"text_format":"1","workbook":"xlsx","n_sheets":2,"sheets":["League Inputs","Fixtures"],"not_rendered":{"charts":0,"images":0,"macros":1,"external_links":0,"defined_names":0,"comments":0,"pivot_tables":0},"unopened":[],"bounds":{"document_bytes":16777216,"sheet_cells":100000,"rows_first":2000,"rows_last":500,"rows_between":2000,"halvings":0,"cell_chars":16384,"cell_head_chars":4096},"cells_cut":0,"cells_raw":0,"read":"whole","date_system":"1900"}

{"sheet":"League Inputs","index":0,"n_rows":30,"n_cols":25,"rows_kept":30,"cut":false,"hidden":false,"merged":[[12,22,12,23],[13,22,13,23],[5,22,5,25],[8,22,8,23],[9,22,9,23],[10,22,10,23],[11,22,11,23]]}
[]
[null,null,"THE SPREADSHEET LIBRARY - 6 TEAM FIXTURE GENERATOR AND LEAGUE TABLE CALCULATOR"]
[]
[null,null,null,"INSTRUCTIONS",null,null,null,null,null,null,null,null,null,null,null,null,"INPUTS"]
[]
[null,null,null,null,"Fill in the yellow input cells in the Input section opposite",null,null,null,null,null,null,null,null,null,null,null,null,null,null,null,"ENTER LEAGUE NAME",null,"FIFA"]
[]
[]
[null,null,null,null,null,null,null,null,null,null,null,null,null,null,null,null,null,null,null,null,"ENTER TEAM NAMES",null,1]
[null,null,null,null,"The ten weeks of fixtures are pre set to produce a round robin of home and away matches",null,null,null,null,null,null,null,null,null,null,null,null,null,null,null,null,null,2]
[null,null,null,null,null,null,null,null,null,null,null,null,null,null,null,null,null,null,null,null,null,null,3]
[null,null,null,null,null,null,null,null,null,null,null,null,null,null,null,null,null,null,null,null,null,null,4]
[null,null,null,null,"In the first week, enter the scores in the appropriate yellow boxes on the Fixtures tab",null,null,null,null,null,null,null,null,null,null,null,null,null,null,null,null,null,5]
[null,null,null,null,null,null,null,null,null,null,null,null,null,null,null,null,null,null,null,null,null,null,6]
[null,null,null,null,null,"Once all scores for the week have been entered, click the \"ReCalc\" button and the league table will be"]
[null,null,null,null,null,"automatically calculated"]
[null,null,null,null,null,null,null,null,null,null,null,null,null,null,null,null,null,null,null,null,"ENTER WEEKS AND DATES",null,null,"Week 1","2023-11-10"]
[null,null,null,null,null,"Then click the \"Copy Prior Week Table\" button which will paste values into the table below",null,null,null,null,null,null,null,null,null,null,null,null,null,null,null,null,null,"Week 2",{"$f":"Y17+7","v":"2023-11-17"}]
[null,null,null,null,null,null,null,null,null,null,null,null,null,null,null,null,null,null,null,null,null,null,null,"Week 3","2023-11-24"]
[null,null,null,null,"Repeat this process every week",null,null,null,null,null,null,null,null,null,null,null,null,null,null,null,null,null,null,"Week 4","2023-12-01"]
[null,null,null,null,null,null,null,null,null,null,null,null,null,null,null,null,null,null,null,null,null,null,null,"Week 5","2023-12-08"]
[null,null,null,null,null,null,null,null,null,null,null,null,null,null,null,null,null,null,null,null,null,null,null,"Week 6","2023-12-15"]
[null,null,null,null,null,null,null,null,null,null,null,null,null,null,null,null,null,null,null,null,null,null,null,"Week 7","2023-12-22"]
[null,null,null,null,null,null,null,null,null,null,null,null,null,null,null,null,null,null,null,null,null,null,null,"Week 8","2023-12-29"]
[null,null,null,null,null,null,null,null,null,null,null,null,null,null,null,null,null,null,null,null,null,null,null,"Week 9","2024-01-05"]
[null,null,null,null,null,null,null,null,null,null,null,null,null,null,null,null,null,null,null,null,null,null,null,"Week 10","2024-01-12"]
[]
[]
[null,null,null,null,null,null,null,null,null,null,null,null,null,null,null,null,null,null,null,null,"ENTER POINTS FOR A WIN",null,null,3]
[null,null,null,null,null,null,null,null,null,null,null,null,null,null,null,null,null,null,null,null,"ENTER POINTS FOR A DRAW",null,null,1]

{"sheet":"Fixtures","index":1,"n_rows":136,"n_cols":43,"rows_kept":136,"cut":false,"hidden":false,"merged":[]}
[]
[null,null,{"$f":"\"\"&UPPER('League Inputs'!$W$6)&\" FIXTURES AND LEAGUE TABLE\"","v":"FIFA FIXTURES AND LEAGUE TABLE"}]
[]
[null,null,null,"FIXTURES",null,null,null,null,null,null,null,null,null,null,null,null,"LEAGUE TABLE"]
[]
[null,null,null,null,null,null,"Week","Date",null,"Home Team",null,null,null,"Away Team",null,null,null,"Team","Played ","Won ","Drawn ","Lost ","GF ","GA ","G + / - ","Points "]
[null,null,null,null,null,null,null,null,null,null,null,null,null,null,null,null,null,{"$f":"'League Inputs'!$W$9","v":1},{"$f":"S$62","v":0},0,0,0,0,0,0,0,null,{"$f":"AI7","v":"t"},{"$f":"AH7-AG7","v":0},null,null,null,1,{"$f":"IF(ISERROR(INDEX($AG$17:$AG$22,MATCH($R7,$R$17:$R$22,))),AG7,INDEX($AG$17:$AG$22,MATCH($R7,$R$17:$R$22,)))","v":1},{"$f":"IF(AC7>0,$AO$7,IF(AC7<0,$AP$7,$AQ$7))","v":"t"},null,null,null,null,null,"p","q","t"]
[null,null,null,null,null,null,{"$f":"'League Inputs'!X17","v":"Week 1"},{"$f":"'League Inputs'!Y17","v":"2023-11-10"},null,{"$f":"'League Inputs'!$W$9","v":1},null,"v",null,{"$f":"'League Inputs'!$W$10","v":2},null,null,null,{"$f":"'League Inputs'!$W$10","v":2},{"$f":"S$76","v":0},0,0,0,0,0,0,0,null,"t",0,null,null,null,2,2,"t",null,{"$f":"J8&N8","v":"12"},{"$f":"IF(AND(ISBLANK(K8),ISBLANK(M8)),0,1)","v":0}]
[null,null,null,null,null,null,null,null,null,{"$f":"'League Inputs'!$W$11","v":3},null,"v",null,{"$f":"'League Inputs'!$W$12","v":4},null,null,null,{"$f":"'League Inputs'!$W$11","v":3},{"$f":"S$90","v":0},0,0,0,0,0,0,0,null,"t",0,null,null,null,3,3,"t",null,{"$f":"J9&N9","v":"34"},{"$f":"IF(AND(ISBLANK(K9),ISBLANK(M9)),0,1)","v":0}]
[null,null,null,null,null,null,null,null,null,{"$f":"'League Inputs'!$W$13","v":5},null,"v",null,{"$f":"'League Inputs'!$W$14","v":6},null,null,null,{"$f":"'League Inputs'!$W$12","v":4},{"$f":"S$104","v":0},0,0,0,0,0,0,0,null,"t",0,null,null,null,4,4,"t",null,{"$f":"J10&N10","v":"56"},{"$f":"IF(AND(ISBLANK(K10),ISBLANK(M10)),0,1)","v":0}]
[null,null,null,null,null,null,null,null,null,null,null,null,null,null,null,null,null,{"$f":"'League Inputs'!$W$13","v":5},{"$f":"S$118","v":0},0,0,0,0,0,0,0,null,"t",0,null,null,null,5,5,"t"]
[null,null,null,null,null,null,{"$f":"'League Inputs'!X18","v":"Week 2"},{"$f":"'League Inputs'!Y18","v":"2023-11-17"},null,{"$f":"'League Inputs'!$W$13","v":5},null,"v",null,{"$f":"'League Inputs'!$W$12","v":4},null,null,null,{"$f":"'League Inputs'!$W$14","v":6},{"$f":"S$132","v":0},0,0,0,0,0,0,0,null,"t",0,null,null,null,6,6,"t",null,{"$f":"J12&N12","v":"54"},{"$f":"IF(AND(ISBLANK(K12),ISBLANK(M12)),0,1)","v":0}]
[null,null,null,null,null,null,null,null,null,{"$f":"'League Inputs'!$W$9","v":1},null,"v",null,{"$f":"'League Inputs'!$W$14","v":6},null,null,null,null,null,null,null,null,null,null,null,null,null,null,null,null,null,null,null,null,null,null,{"$f":"J13&N13","v":"16"},{"$f":"IF(AND(ISBLANK(K13),ISBLANK(M13)),0,1)","v":0}]
[null,null,null,null,null,null,null,null,null,{"$f":"'League Inputs'!$W$10","v":2},null,"v",null,{"$f":"'League Inputs'!$W$11","v":3},null,null,null,null,null,null,null,null,null,null,null,null,null,null,null,null,null,null,null,null,null,null,{"$f":"J14&N14","v":"23"},{"$f":"IF(AND(ISBLANK(K14),ISBLANK(M14)),0,1)","v":0}]
[null,null,null,null,null,null,null,null,null,null,null,null,null,null,null,null,null,"Prior Week Table"]
[null,null,null,null,null,null,{"$f":"'League Inputs'!X19","v":"Week 3"},{"$f":"'League Inputs'!Y19","v":"2023-11-24"},null,{"$f":"'League Inputs'!$W$11","v":3},null,"v",null,{"$f":"'League Inputs'!$W$9","v":1},null,null,null,"Team","Played ","Won ","Drawn ","Lost ","GF ","GA ","G + / - ","Points ",null,null,null,null,null,null,null,null,null,null,{"$f":"J16&N16","v":"31"},{"$f":"IF(AND(ISBLANK(K16),ISBLANK(M16)),0,1)","v":0}]
[null,null,null,null,null,null,null,null,null,{"$f":"'League Inputs'!$W$10","v":2},null,"v",null,{"$f":"'League Inputs'!$W$13","v":5},null,null,null,null,null,null,null,null,null,null,null,null,null,null,null,null,null,null,1,null,null,null,{"$f":"J17&N17","v":"25"},{"$f":"IF(AND(ISBLANK(K17),ISBLANK(M17)),0,1)","v":0}]
[null,null,null,null,null,null,null,null,null,{"$f":"'League Inputs'!$W$14","v":6},null,"v",null,{"$f":"'League Inputs'!$W$12","v":4},null,null,null,null,null,null,null,null,null,null,null,null,null,null,null,null,null,null,2,null,null,null,{"$f":"J18&N18","v":"64"},{"$f":"IF(AND(ISBLANK(K18),ISBLANK(M18)),0,1)","v":0}]
[null,null,null,null,null,null,null,null,null,null,null,null,null,null,null,null,null,null,null,null,null,null,null,null,null,null,null,null,null,null,null,null,3]
[null,null,null,null,null,null,{"$f":"'League Inputs'!X20","v":"Week 4"},{"$f":"'League Inputs'!Y20","v":"2023-12-01"},null,{"$f":"'League Inputs'!$W$10","v":2},null,"v",null,{"$f":"'League Inputs'!$W$14","v":6},null,null,null,null,null,null,null,null,null,null,null,null,null,null,null,null,null,null,4,null,null,null,{"$f":"J20&N20","v":"26"},{"$f":"IF(AND(ISBLANK(K20),ISBLANK(M20)),0,1)","v":0}]
[null,null,null,null,null,null,null,null,null,{"$f":"'League Inputs'!$W$12","v":4},null,"v",null,{"$f":"'League Inputs'!$W$9","v":1},null,null,null,null,null,null,null,null,null,null,null,null,null,null,null,null,null,null,5,null,null,null,{"$f":"J21&N21","v":"41"},{"$f":"IF(AND(ISBLANK(K21),ISBLANK(M21)),0,1)","v":0}]
[null,null,null,null,null,null,null,null,null,{"$f":"'League Inputs'!$W$11","v":3},null,"v",null,{"$f":"'League Inputs'!$W$13","v":5},null,null,null,null,null,null,null,null,null,null,null,null,null,null,null,null,null,null,6,null,null,null,{"$f":"J22&N22","v":"35"},{"$f":"IF(AND(ISBLANK(K22),ISBLANK(M22)),0,1)","v":0}]
[]
[null,null,null,null,null,null,{"$f":"'League Inputs'!X21","v":"Week 5"},{"$f":"'League Inputs'!Y21","v":"2023-12-08"},null,{"$f":"'League Inputs'!$W$9","v":1},null,"v",null,{"$f":"'League Inputs'!$W$13","v":5},null,null,null,null,null,null,null,null,null,null,null,null,null,null,null,null,null,null,null,null,null,null,{"$f":"J24&N24","v":"15"},{"$f":"IF(AND(ISBLANK(K24),ISBLANK(M24)),0,1)","v":0}]
[null,null,null,null,null,null,null,null,null,{"$f":"'League Inputs'!$W$14","v":6},null,"v",null,{"$f":"'League Inputs'!$W$11","v":3},null,null,null,null,null,null,null,null,null,null,null,null,null,null,null,null,null,null,null,null,null,null,{"$f":"J25&N25","v":"63"},{"$f":"IF(AND(ISBLANK(K25),ISBLANK(M25)),0,1)","v":0}]
[null,null,null,null,null,null,null,null,null,{"$f":"'League Inputs'!$W$12","v":4},null,"v",null,{"$f":"'League Inputs'!$W$10","v":2},null,null,null,null,null,null,null,null,null,null,null,null,null,null,null,null,null,null,null,null,null,null,{"$f":"J26&N26","v":"42"},{"$f":"IF(AND(ISBLANK(K26),ISBLANK(M26)),0,1)","v":0}]
[]
[null,null,null,null,null,null,{"$f":"'League Inputs'!X22","v":"Week 6"},{"$f":"'League Inputs'!Y22","v":"2023-12-15"},null,{"$f":"$N$26","v":2},null,"v",null,{"$f":"$J$26","v":4},null,null,null,null,null,null,null,null,null,null,null,null,null,null,null,null,null,null,null,null,null,null,{"$f":"J28&N28","v":"24"},{"$f":"IF(AND(ISBLANK(K28),ISBLANK(M28)),0,1)","v":0}]
[null,null,null,null,null,null,null,null,null,{"$f":"$N$25","v":3},null,"v",null,{"$f":"$J$25","v":6},null,null,null,null,null,null,null,null,null,null,null,null,null,null,null,null,null,null,null,null,null,null,{"$f":"J29&N29","v":"36"},{"$f":"IF(AND(ISBLANK(K29),ISBLANK(M29)),0,1)","v":0}]
[null,null,null,null,null,null,null,null,null,{"$f":"$N$24","v":5},null,"v",null,{"$f":"$J$24","v":1},null,null,null,null,null,null,null,null,null,null,null,null,null,null,null,null,null,null,null,null,null,null,{"$f":"J30&N30","v":"51"},{"$f":"IF(AND(ISBLANK(K30),ISBLANK(M30)),0,1)","v":0}]
[]
[null,null,null,null,null,null,{"$f":"'League Inputs'!X23","v":"Week 7"},{"$f":"'League Inputs'!Y23","v":"2023-12-22"},null,{"$f":"$N$22","v":5},null,"v",null,{"$f":"$J$22","v":3},null,null,null,null,null,null,null,null,null,null,null,null,null,null,null,null,null,null,null,null,null,null,{"$f":"J32&N32","v":"53"},{"$f":"IF(AND(ISBLANK(K32),ISBLANK(M32)),0,1)","v":0}]
[null,null,null,null,null,null,null,null,null,{"$f":"$N$21","v":1},null,"v",null,{"$f":"$J$21","v":4},null,null,null,null,null,null,null,null,null,null,null,null,null,null,null,null,null,null,null,null,null,null,{"$f":"J33&N33","v":"14"},{"$f":"IF(AND(ISBLANK(K33),ISBLANK(M33)),0,1)","v":0}]
[null,null,null,null,null,null,null,null,null,{"$f":"$N$20","v":6},null,"v",null,{"$f":"$J$20","v":2},null,null,null,null,null,null,null,null,null,null,null,null,null,null,null,null,null,null,null,null,null,null,{"$f":"J34&N34","v":"62"},{"$f":"IF(AND(ISBLANK(K34),ISBLANK(M34)),0,1)","v":0}]
[]
[null,null,null,null,null,null,{"$f":"'League Inputs'!X24","v":"Week 8"},{"$f":"'League Inputs'!Y24","v":"2023-12-29"},null,{"$f":"$N$18","v":4},null,"v",null,{"$f":"$J$18","v":6},null,null,null,null,null,null,null,null,null,null,null,null,null,null,null,null,null,null,null,null,null,null,{"$f":"J36&N36","v":"46"},{"$f":"IF(AND(ISBLANK(K36),ISBLANK(M36)),0,1)","v":0}]
[null,null,null,null,null,null,null,null,null,{"$f":"$N$17","v":5},null,"v",null,{"$f":"$J$17","v":2},null,null,null,null,null,null,null,null,null,null,null,null,null,null,null,null,null,null,null,null,null,null,{"$f":"J37&N37","v":"52"},{"$f":"IF(AND(ISBLANK(K37),ISBLANK(M37)),0,1)","v":0}]
[null,null,null,null,null,null,null,null,null,{"$f":"$N$16","v":1},null,"v",null,{"$f":"$J$16","v":3},null,null,null,null,null,null,null,null,null,null,null,null,null,null,null,null,null,null,null,null,null,null,{"$f":"J38&N38","v":"13"},{"$f":"IF(AND(ISBLANK(K38),ISBLANK(M38)),0,1)","v":0}]
[]
[null,null,null,null,null,null,{"$f":"'League Inputs'!X25","v":"Week 9"},{"$f":"'League Inputs'!Y25","v":"2024-01-05"},null,{"$f":"$N$14","v":3},null,"v",null,{"$f":"$J$14","v":2},null,null,null,null,null,null,null,null,null,null,null,null,null,null,null,null,null,null,null,null,null,null,{"$f":"J40&N40","v":"32"},{"$f":"IF(AND(ISBLANK(K40),ISBLANK(M40)),0,1)","v":0}]
[null,null,null,null,null,null,null,null,null,{"$f":"$N$13","v":6},null,"v",null,{"$f":"$J$13","v":1},null,null,null,null,null,null,null,null,null,null,null,null,null,null,null,null,null,null,null,null,null,null,{"$f":"J41&N41","v":"61"},{"$f":"IF(AND(ISBLANK(K41),ISBLANK(M41)),0,1)","v":0}]
[null,null,null,null,null,null,null,null,null,{"$f":"$N$12","v":4},null,"v",null,{"$f":"$J$12","v":5},null,null,null,null,null,null,null,null,null,null,null,null,null,null,null,null,null,null,null,null,null,null,{"$f":"J42&N42","v":"45"},{"$f":"IF(AND(ISBLANK(K42),ISBLANK(M42)),0,1)","v":0}]
[]
[null,null,null,null,null,null,{"$f":"'League Inputs'!X26","v":"Week 10"},{"$f":"'League Inputs'!Y26","v":"2024-01-12"},null,{"$f":"$N$10","v":6},null,"v",null,{"$f":"$J$10","v":5},null,null,null,null,null,null,null,null,null,null,null,null,null,null,null,null,null,null,null,null,null,null,{"$f":"J44&N44","v":"65"},{"$f":"IF(AND(ISBLANK(K44),ISBLANK(M44)),0,1)","v":0}]
[null,null,null,null,null,null,null,null,null,{"$f":"$N$9","v":4},null,"v",null,{"$f":"$J$9","v":3},null,null,null,null,null,null,null,null,null,null,null,null,null,null,null,null,null,null,null,null,null,null,{"$f":"J45&N45","v":"43"},{"$f":"IF(AND(ISBLANK(K45),ISBLANK(M45)),0,1)","v":0}]
[null,null,null,null,null,null,null,null,null,{"$f":"$N$8","v":2},null,"v",null,{"$f":"$J$8","v":1},null,null,null,null,null,null,null,null,null,null,null,null,null,null,null,null,null,null,null,null,null,null,{"$f":"J46&N46","v":"21"},{"$f":"IF(AND(ISBLANK(K46),ISBLANK(M46)),0,1)","v":0}]
[]
[]
[null,null,"CALCULATIONS"]
[]
[null,null,null,null,null,{"$f":"'League Inputs'!$W$9","v":1},null,null,null,null,null,null,null,null,null,null,null,"Week","Played","Won","Drawn","Lost","GF","GA","G + / -","Points",null,null,null,null,null,null,null,null,null,null,"Fixture Code","Played","Home","Away"]
[null,null,null,null,null,null,null,null,null,{"$f":"'League Inputs'!$W$9","v":1},{"$f":"SUMIF($AK$8:$AK$46,$AK52,K$8:K$46)","v":0},"v",{"$f":"SUMIF($AK$8:$AK$46,$AK52,M$8:M$46)","v":0},{"$f":"'League Inputs'!$W$10","v":2},null,null,null,{"$f":"'League Inputs'!$X$17","v":"Week 1"},{"$f":"AL52","v":0},{"$f":"IF(OR(AND(AM52=1,K52>M52),AND(AN52=1,M52>K52)),1,0)","v":0},{"$f":"IF(K52=M52,1,0)*AL52","v":0},{"$f":"(1-SUM(T52:U52))*S52","v":0},{"$f":"(K52*AM52)+(M52*AN52)","v":0},{"$f":"(M52*AM52)+(K52*AN52)","v":0},{"$f":"W52-X52","v":0},{"$f":"(T52*'League Inputs'!$X$29)+(U52*'League Inputs'!$X$30)","v":0},null,null,null,null,null,null,null,null,null,null,{"$f":"J52&N52","v":"12"},{"$f":"SUMIF($AK$8:$AK$46,$AK52,AL$8:AL$46)","v":0},{"$f":"IF($J52=F51,1,0)*AL52","v":0},{"$f":"IF(AM52=1,0,1)*AL52","v":0}]
[null,null,null,null,null,null,null,null,null,{"$f":"'League Inputs'!$W$9","v":1},0,"v",0,{"$f":"'League Inputs'!$W$14","v":6},null,null,null,{"$f":"'League Inputs'!$X$18","v":"Week 2"},0,0,0,{"$f":"(1-SUM(T53:U53))*S53","v":0},0,0,{"$f":"W53-X53","v":0},{"$f":"(T53*'League Inputs'!$X$29)+(U53*'League Inputs'!$X$30)","v":0},null,null,null,null,null,null,null,null,null,null,"16",0,{"$f":"IF($J53=F51,1,0)*AL53","v":0},{"$f":"IF(AM53=1,0,1)*AL53","v":0}]
[null,null,null,null,null,null,null,null,null,{"$f":"'League Inputs'!$W$11","v":3},0,"v",0,{"$f":"'League Inputs'!$W$9","v":1},null,null,null,{"$f":"'League Inputs'!$X$19","v":"Week 3"},0,0,0,0,0,0,0,{"$f":"(T54*'League Inputs'!$X$29)+(U54*'League Inputs'!$X$30)","v":0},null,null,null,null,null,null,null,null,null,null,"31",0,{"$f":"IF($J54=F51,1,0)*AL54","v":0},0]
[null,null,null,null,null,null,null,null,null,{"$f":"'League Inputs'!$W$12","v":4},0,"v",0,{"$f":"'League Inputs'!$W$9","v":1},null,null,null,{"$f":"'League Inputs'!$X$20","v":"Week 4"},0,0,0,0,0,0,0,{"$f":"(T55*'League Inputs'!$X$29)+(U55*'League Inputs'!$X$30)","v":0},null,null,null,null,null,null,null,null,null,null,"41",0,{"$f":"IF($J55=F51,1,0)*AL55","v":0},0]
[null,null,null,null,null,null,null,null,null,{"$f":"'League Inputs'!$W$9","v":1},0,"v",0,{"$f":"'League Inputs'!$W$13","v":5},null,null,null,{"$f":"'League Inputs'!$X$21","v":"Week 5"},0,0,0,0,0,0,0,{"$f":"(T56*'League Inputs'!$X$29)+(U56*'League Inputs'!$X$30)","v":0},null,null,null,null,null,null,null,null,null,null,"15",0,{"$f":"IF($J56=F51,1,0)*AL56","v":0},0]
[null,null,null,null,null,null,null,null,null,{"$f":"$N$24","v":5},0,"v",0,{"$f":"$J$24","v":1},null,null,null,{"$f":"'League Inputs'!$X$22","v":"Week 6"},0,0,0,0,0,0,0,{"$f":"(T57*'League Inputs'!$X$29)+(U57*'League Inputs'!$X$30)","v":0},null,null,null,null,null,null,null,null,null,null,"51",0,{"$f":"IF($J57=F51,1,0)*AL57","v":0},0]
[null,null,null,null,null,null,null,null,null,{"$f":"$N$21","v":1},0,"v",0,{"$f":"$J$21","v":4},null,null,null,{"$f":"'League Inputs'!$X$23","v":"Week 7"},0,0,0,0,0,0,0,{"$f":"(T58*'League Inputs'!$X$29)+(U58*'League Inputs'!$X$30)","v":0},null,null,null,null,null,null,null,null,null,null,"14",0,{"$f":"IF($J58=F51,1,0)*AL58","v":0},0]
[null,null,null,null,null,null,null,null,null,{"$f":"$N$16","v":1},0,"v",0,{"$f":"$J$16","v":3},null,null,null,{"$f":"'League Inputs'!$X$24","v":"Week 8"},0,0,0,0,0,0,0,{"$f":"(T59*'League Inputs'!$X$29)+(U59*'League Inputs'!$X$30)","v":0},null,null,null,null,null,null,null,null,null,null,"13",0,{"$f":"IF($J59=F51,1,0)*AL59","v":0},0]
[null,null,null,null,null,null,null,null,null,{"$f":"$N$13","v":6},0,"v",0,{"$f":"$J$13","v":1},null,null,null,{"$f":"'League Inputs'!$X$25","v":"Week 9"},0,0,0,0,0,0,0,{"$f":"(T60*'League Inputs'!$X$29)+(U60*'League Inputs'!$X$30)","v":0},null,null,null,null,null,null,null,null,null,null,"61",0,{"$f":"IF($J60=F51,1,0)*AL60","v":0},0]
[null,null,null,null,null,null,null,null,null,{"$f":"$N$8","v":2},0,"v",0,{"$f":"$J$8","v":1},null,null,null,{"$f":"'League Inputs'!$X$26","v":"Week 10"},0,0,0,0,0,0,0,{"$f":"(T61*'League Inputs'!$X$29)+(U61*'League Inputs'!$X$30)","v":0},null,null,null,null,null,null,null,null,null,null,"21",0,{"$f":"IF($J61=F51,1,0)*AL61","v":0},0]
[null,null,null,null,null,null,null,null,null,null,null,null,null,null,null,null,null,{"$f":"F51","v":1},{"$f":"SUM(S52:S61)","v":0},{"$f":"SUM(T52:T61)","v":0},0,0,0,0,0,0]
[]
[]
[null,null,null,null,null,{"$f":"'League Inputs'!$W$10","v":2},null,null,null,null,null,null,null,null,null,null,null,"Week","Played","Won","Drawn","Lost","GF","GA","G + / -","Points",null,null,null,null,null,null,null,null,null,null,"Fixture Code","Played","Home","Away"]
[null,null,null,null,null,null,null,null,null,{"$f":"'League Inputs'!$W$9","v":1},{"$f":"SUMIF($AK$8:$AK$46,$AK66,K$8:K$46)","v":0},"v",{"$f":"SUMIF($AK$8:$AK$46,$AK66,M$8:M$46)","v":0},{"$f":"'League Inputs'!$W$10","v":2},null,null,null,{"$f":"'League Inputs'!$X$17","v":"Week 1"},{"$f":"AL66","v":0},{"$f":"IF(OR(AND(AM66=1,K66>M66),AND(AN66=1,M66>K66)),1,0)","v":0},{"$f":"IF(K66=M66,1,0)*AL66","v":0},{"$f":"(1-SUM(T66:U66))*S66","v":0},{"$f":"(K66*AM66)+(M66*AN66)","v":0},{"$f":"(M66*AM66)+(K66*AN66)","v":0},{"$f":"W66-X66","v":0},{"$f":"(T66*'League Inputs'!$X$29)+(U66*'League Inputs'!$X$30)","v":0},null,null,null,null,null,null,null,null,null,null,{"$f":"J66&N66","v":"12"},{"$f":"SUMIF($AK$8:$AK$46,$AK66,AL$8:AL$46)","v":0},{"$f":"IF($J66=F65,1,0)*AL66","v":0},{"$f":"IF(AM66=1,0,1)*AL66","v":0}]
[null,null,null,null,null,null,null,null,null,{"$f":"'League Inputs'!$W$10","v":2},0,"v",0,{"$f":"'League Inputs'!$W$11","v":3},null,null,null,{"$f":"'League Inputs'!$X$18","v":"Week 2"},0,0,0,{"$f":"(1-SUM(T67:U67))*S67","v":0},0,0,{"$f":"W67-X67","v":0},{"$f":"(T67*'League Inputs'!$X$29)+(U67*'League Inputs'!$X$30)","v":0},null,null,null,null,null,null,null,null,null,null,"23",0,{"$f":"IF($J67=F65,1,0)*AL67","v":0},{"$f":"IF(AM67=1,0,1)*AL67","v":0}]
[null,null,null,null,null,null,null,null,null,{"$f":"'League Inputs'!$W$10","v":2},0,"v",0,{"$f":"'League Inputs'!$W$13","v":5},null,null,null,{"$f":"'League Inputs'!$X$19","v":"Week 3"},0,0,0,0,0,0,0,{"$f":"(T68*'League Inputs'!$X$29)+(U68*'League Inputs'!$X$30)","v":0},null,null,null,null,null,null,null,null,null,null,"25",0,{"$f":"IF($J68=F65,1,0)*AL68","v":0},0]
[null,null,null,null,null,null,null,null,null,{"$f":"'League Inputs'!$W$10","v":2},0,"v",0,{"$f":"'League Inputs'!$W$14","v":6},null,null,null,{"$f":"'League Inputs'!$X$20","v":"Week 4"},0,0,0,0,0,0,0,{"$f":"(T69*'League Inputs'!$X$29)+(U69*'League Inputs'!$X$30)","v":0},null,null,null,null,null,null,null,null,null,null,"26",0,{"$f":"IF($J69=F65,1,0)*AL69","v":0},0]
[null,null,null,null,null,null,null,null,null,{"$f":"'League Inputs'!$W$12","v":4},0,"v",0,{"$f":"'League Inputs'!$W$10","v":2},null,null,null,{"$f":"'League Inputs'!$X$21","v":"Week 5"},0,0,0,0,0,0,0,{"$f":"(T70*'League Inputs'!$X$29)+(U70*'League Inputs'!$X$30)","v":0},null,null,null,null,null,null,null,null,null,null,"42",0,{"$f":"IF($J70=F65,1,0)*AL70","v":0},0]
[null,null,null,null,null,null,null,null,null,{"$f":"$N$26","v":2},0,"v",0,{"$f":"$J$26","v":4},null,null,null,{"$f":"'League Inputs'!$X$22","v":"Week 6"},0,0,0,0,0,0,0,{"$f":"(T71*'League Inputs'!$X$29)+(U71*'League Inputs'!$X$30)","v":0},null,null,null,null,null,null,null,null,null,null,"24",0,{"$f":"IF($J71=F65,1,0)*AL71","v":0},0]
[null,null,null,null,null,null,null,null,null,{"$f":"$N$20","v":6},0,"v",0,{"$f":"$J$20","v":2},null,null,null,{"$f":"'League Inputs'!$X$23","v":"Week 7"},0,0,0,0,0,0,0,{"$f":"(T72*'League Inputs'!$X$29)+(U72*'League Inputs'!$X$30)","v":0},null,null,null,null,null,null,null,null,null,null,"62",0,{"$f":"IF($J72=F65,1,0)*AL72","v":0},0]
[null,null,null,null,null,null,null,null,null,{"$f":"$N$17","v":5},0,"v",0,{"$f":"$J$17","v":2},null,null,null,{"$f":"'League Inputs'!$X$24","v":"Week 8"},0,0,0,0,0,0,0,{"$f":"(T73*'League Inputs'!$X$29)+(U73*'League Inputs'!$X$30)","v":0},null,null,null,null,null,null,null,null,null,null,"52",0,{"$f":"IF($J73=F65,1,0)*AL73","v":0},0]
[null,null,null,null,null,null,null,null,null,{"$f":"$N$14","v":3},0,"v",0,{"$f":"$J$14","v":2},null,null,null,{"$f":"'League Inputs'!$X$25","v":"Week 9"},0,0,0,0,0,0,0,{"$f":"(T74*'League Inputs'!$X$29)+(U74*'League Inputs'!$X$30)","v":0},null,null,null,null,null,null,null,null,null,null,"32",0,{"$f":"IF($J74=F65,1,0)*AL74","v":0},0]
[null,null,null,null,null,null,null,null,null,{"$f":"$N$8","v":2},0,"v",0,{"$f":"$J$8","v":1},null,null,null,{"$f":"'League Inputs'!$X$26","v":"Week 10"},0,0,0,0,0,0,0,{"$f":"(T75*'League Inputs'!$X$29)+(U75*'League Inputs'!$X$30)","v":0},null,null,null,null,null,null,null,null,null,null,"21",0,{"$f":"IF($J75=F65,1,0)*AL75","v":0},0]
[null,null,null,null,null,null,null,null,null,null,null,null,null,null,null,null,null,{"$f":"F65","v":2},{"$f":"SUM(S66:S75)","v":0},{"$f":"SUM(T66:T75)","v":0},0,0,0,0,0,0]
[]
[]
[null,null,null,null,null,{"$f":"'League Inputs'!$W$11","v":3},null,null,null,null,null,null,null,null,null,null,null,"Week","Played","Won","Drawn","Lost","GF","GA","G + / -","Points",null,null,null,null,null,null,null,null,null,null,"Fixture Code","Played","Home","Away"]
[null,null,null,null,null,null,null,null,null,{"$f":"'League Inputs'!$W$11","v":3},{"$f":"SUMIF($AK$8:$AK$46,$AK80,K$8:K$46)","v":0},"v",{"$f":"SUMIF($AK$8:$AK$46,$AK80,M$8:M$46)","v":0},{"$f":"'League Inputs'!$W$12","v":4},null,null,null,{"$f":"'League Inputs'!$X$17","v":"Week 1"},{"$f":"AL80","v":0},{"$f":"IF(OR(AND(AM80=1,K80>M80),AND(AN80=1,M80>K80)),1,0)","v":0},{"$f":"IF(K80=M80,1,0)*AL80","v":0},{"$f":"(1-SUM(T80:U80))*S80","v":0},{"$f":"(K80*AM80)+(M80*AN80)","v":0},{"$f":"(M80*AM80)+(K80*AN80)","v":0},{"$f":"W80-X80","v":0},{"$f":"(T80*'League Inputs'!$X$29)+(U80*'League Inputs'!$X$30)","v":0},null,null,null,null,null,null,null,null,null,null,{"$f":"J80&N80","v":"34"},{"$f":"SUMIF($AK$8:$AK$46,$AK80,AL$8:AL$46)","v":0},{"$f":"IF($J80=F79,1,0)*AL80","v":0},{"$f":"IF(AM80=1,0,1)*AL80","v":0}]
[null,null,null,null,null,null,null,null,null,{"$f":"'League Inputs'!$W$10","v":2},0,"v",0,{"$f":"'League Inputs'!$W$11","v":3},null,null,null,{"$f":"'League Inputs'!$X$18","v":"Week 2"},0,0,0,{"$f":"(1-SUM(T81:U81))*S81","v":0},0,0,{"$f":"W81-X81","v":0},{"$f":"(T81*'League Inputs'!$X$29)+(U81*'League Inputs'!$X$30)","v":0},null,null,null,null,null,null,null,null,null,null,"23",0,{"$f":"IF($J81=F79,1,0)*AL81","v":0},{"$f":"IF(AM81=1,0,1)*AL81","v":0}]
[null,null,null,null,null,null,null,null,null,{"$f":"'League Inputs'!$W$11","v":3},0,"v",0,{"$f":"'League Inputs'!$W$9","v":1},null,null,null,{"$f":"'League Inputs'!$X$19","v":"Week 3"},0,0,0,0,0,0,0,{"$f":"(T82*'League Inputs'!$X$29)+(U82*'League Inputs'!$X$30)","v":0},null,null,null,null,null,null,null,null,null,null,"31",0,{"$f":"IF($J82=F79,1,0)*AL82","v":0},0]
[null,null,null,null,null,null,null,null,null,{"$f":"'League Inputs'!$W$11","v":3},0,"v",0,{"$f":"'League Inputs'!$W$13","v":5},null,null,null,{"$f":"'League Inputs'!$X$20","v":"Week 4"},0,0,0,0,0,0,0,{"$f":"(T83*'League Inputs'!$X$29)+(U83*'League Inputs'!$X$30)","v":0},null,null,null,null,null,null,null,null,null,null,"35",0,{"$f":"IF($J83=F79,1,0)*AL83","v":0},0]
[null,null,null,null,null,null,null,null,null,{"$f":"'League Inputs'!$W$14","v":6},0,"v",0,{"$f":"'League Inputs'!$W$11","v":3},null,null,null,{"$f":"'League Inputs'!$X$21","v":"Week 5"},0,0,0,0,0,0,0,{"$f":"(T84*'League Inputs'!$X$29)+(U84*'League Inputs'!$X$30)","v":0},null,null,null,null,null,null,null,null,null,null,"63",0,{"$f":"IF($J84=F79,1,0)*AL84","v":0},0]
[null,null,null,null,null,null,null,null,null,{"$f":"$N$25","v":3},0,"v",0,{"$f":"$J$25","v":6},null,null,null,{"$f":"'League Inputs'!$X$22","v":"Week 6"},0,0,0,0,0,0,0,{"$f":"(T85*'League Inputs'!$X$29)+(U85*'League Inputs'!$X$30)","v":0},null,null,null,null,null,null,null,null,null,null,"36",0,{"$f":"IF($J85=F79,1,0)*AL85","v":0},0]
[null,null,null,null,null,null,null,null,null,{"$f":"$N$22","v":5},0,"v",0,{"$f":"$J$22","v":3},null,null,null,{"$f":"'League Inputs'!$X$23","v":"Week 7"},0,0,0,0,0,0,0,{"$f":"(T86*'League Inputs'!$X$29)+(U86*'League Inputs'!$X$30)","v":0},null,null,null,null,null,null,null,null,null,null,"53",0,{"$f":"IF($J86=F79,1,0)*AL86","v":0},0]
[null,null,null,null,null,null,null,null,null,{"$f":"$N$16","v":1},0,"v",0,{"$f":"$J$16","v":3},null,null,null,{"$f":"'League Inputs'!$X$24","v":"Week 8"},0,0,0,0,0,0,0,{"$f":"(T87*'League Inputs'!$X$29)+(U87*'League Inputs'!$X$30)","v":0},null,null,null,null,null,null,null,null,null,null,"13",0,{"$f":"IF($J87=F79,1,0)*AL87","v":0},0]
[null,null,null,null,null,null,null,null,null,{"$f":"$N$14","v":3},0,"v",0,{"$f":"$J$14","v":2},null,null,null,{"$f":"'League Inputs'!$X$25","v":"Week 9"},0,0,0,0,0,0,0,{"$f":"(T88*'League Inputs'!$X$29)+(U88*'League Inputs'!$X$30)","v":0},null,null,null,null,null,null,null,null,null,null,"32",0,{"$f":"IF($J88=F79,1,0)*AL88","v":0},0]
[null,null,null,null,null,null,null,null,null,{"$f":"$N$9","v":4},0,"v",0,{"$f":"$J$9","v":3},null,null,null,{"$f":"'League Inputs'!$X$26","v":"Week 10"},0,0,0,0,0,0,0,{"$f":"(T89*'League Inputs'!$X$29)+(U89*'League Inputs'!$X$30)","v":0},null,null,null,null,null,null,null,null,null,null,"43",0,{"$f":"IF($J89=F79,1,0)*AL89","v":0},0]
[null,null,null,null,null,null,null,null,null,null,null,null,null,null,null,null,null,{"$f":"F79","v":3},{"$f":"SUM(S80:S89)","v":0},{"$f":"SUM(T80:T89)","v":0},0,0,0,0,0,0]
[]
[]
[null,null,null,null,null,{"$f":"'League Inputs'!$W$12","v":4},null,null,null,null,null,null,null,null,null,null,null,"Week","Played","Won","Drawn","Lost","GF","GA","G + / -","Points",null,null,null,null,null,null,null,null,null,null,"Fixture Code","Played","Home","Away"]
[null,null,null,null,null,null,null,null,null,{"$f":"'League Inputs'!$W$11","v":3},{"$f":"SUMIF($AK$8:$AK$46,$AK94,K$8:K$46)","v":0},"v",{"$f":"SUMIF($AK$8:$AK$46,$AK94,M$8:M$46)","v":0},{"$f":"'League Inputs'!$W$12","v":4},null,null,null,{"$f":"'League Inputs'!$X$17","v":"Week 1"},{"$f":"AL94","v":0},{"$f":"IF(OR(AND(AM94=1,K94>M94),AND(AN94=1,M94>K94)),1,0)","v":0},{"$f":"IF(K94=M94,1,0)*AL94","v":0},{"$f":"(1-SUM(T94:U94))*S94","v":0},{"$f":"(K94*AM94)+(M94*AN94)","v":0},{"$f":"(M94*AM94)+(K94*AN94)","v":0},{"$f":"W94-X94","v":0},{"$f":"(T94*'League Inputs'!$X$29)+(U94*'League Inputs'!$X$30)","v":0},null,null,null,null,null,null,null,null,null,null,{"$f":"J94&N94","v":"34"},{"$f":"SUMIF($AK$8:$AK$46,$AK94,AL$8:AL$46)","v":0},{"$f":"IF($J94=F93,1,0)*AL94","v":0},{"$f":"IF(AM94=1,0,1)*AL94","v":0}]
[null,null,null,null,null,null,null,null,null,{"$f":"'League Inputs'!$W$13","v":5},0,"v",0,{"$f":"'League Inputs'!$W$12","v":4},null,null,null,{"$f":"'League Inputs'!$X$18","v":"Week 2"},0,0,0,{"$f":"(1-SUM(T95:U95))*S95","v":0},0,0,{"$f":"W95-X95","v":0},{"$f":"(T95*'League Inputs'!$X$29)+(U95*'League Inputs'!$X$30)","v":0},null,null,null,null,null,null,null,null,null,null,"54",0,{"$f":"IF($J95=F93,1,0)*AL95","v":0},{"$f":"IF(AM95=1,0,1)*AL95","v":0}]
[null,null,null,null,null,null,null,null,null,{"$f":"'League Inputs'!$W$14","v":6},0,"v",0,{"$f":"'League Inputs'!$W$12","v":4},null,null,null,{"$f":"'League Inputs'!$X$19","v":"Week 3"},0,0,0,0,0,0,0,{"$f":"(T96*'League Inputs'!$X$29)+(U96*'League Inputs'!$X$30)","v":0},null,null,null,null,null,null,null,null,null,null,"64",0,{"$f":"IF($J96=F93,1,0)*AL96","v":0},0]
[null,null,null,null,null,null,null,null,null,{"$f":"'League Inputs'!$W$12","v":4},0,"v",0,{"$f":"'League Inputs'!$W$9","v":1},null,null,null,{"$f":"'League Inputs'!$X$20","v":"Week 4"},0,0,0,0,0,0,0,{"$f":"(T97*'League Inputs'!$X$29)+(U97*'League Inputs'!$X$30)","v":0},null,null,null,null,null,null,null,null,null,null,"41",0,{"$f":"IF($J97=F93,1,0)*AL97","v":0},0]
[null,null,null,null,null,null,null,null,null,{"$f":"'League Inputs'!$W$12","v":4},0,"v",0,{"$f":"'League Inputs'!$W$10","v":2},null,null,null,{"$f":"'League Inputs'!$X$21","v":"Week 5"},0,0,0,0,0,0,0,{"$f":"(T98*'League Inputs'!$X$29)+(U98*'League Inputs'!$X$30)","v":0},null,null,null,null,null,null,null,null,null,null,"42",0,{"$f":"IF($J98=F93,1,0)*AL98","v":0},0]
[null,null,null,null,null,null,null,null,null,{"$f":"$N$26","v":2},0,"v",0,{"$f":"$J$26","v":4},null,null,null,{"$f":"'League Inputs'!$X$22","v":"Week 6"},0,0,0,0,0,0,0,{"$f":"(T99*'League Inputs'!$X$29)+(U99*'League Inputs'!$X$30)","v":0},null,null,null,null,null,null,null,null,null,null,"24",0,{"$f":"IF($J99=F93,1,0)*AL99","v":0},0]
[null,null,null,null,null,null,null,null,null,{"$f":"$N$21","v":1},0,"v",0,{"$f":"$J$21","v":4},null,null,null,{"$f":"'League Inputs'!$X$23","v":"Week 7"},0,0,0,0,0,0,0,{"$f":"(T100*'League Inputs'!$X$29)+(U100*'League Inputs'!$X$30)","v":0},null,null,null,null,null,null,null,null,null,null,"14",0,{"$f":"IF($J100=F93,1,0)*AL100","v":0},0]
[null,null,null,null,null,null,null,null,null,{"$f":"$N$18","v":4},0,"v",0,{"$f":"$J$18","v":6},null,null,null,{"$f":"'League Inputs'!$X$24","v":"Week 8"},0,0,0,0,0,0,0,{"$f":"(T101*'League Inputs'!$X$29)+(U101*'League Inputs'!$X$30)","v":0},null,null,null,null,null,null,null,null,null,null,"46",0,{"$f":"IF($J101=F93,1,0)*AL101","v":0},0]
[null,null,null,null,null,null,null,null,null,{"$f":"$N$12","v":4},0,"v",0,{"$f":"$J$12","v":5},null,null,null,{"$f":"'League Inputs'!$X$25","v":"Week 9"},0,0,0,0,0,0,0,{"$f":"(T102*'League Inputs'!$X$29)+(U102*'League Inputs'!$X$30)","v":0},null,null,null,null,null,null,null,null,null,null,"45",0,{"$f":"IF($J102=F93,1,0)*AL102","v":0},0]
[null,null,null,null,null,null,null,null,null,{"$f":"$N$9","v":4},0,"v",0,{"$f":"$J$9","v":3},null,null,null,{"$f":"'League Inputs'!$X$26","v":"Week 10"},0,0,0,0,0,0,0,{"$f":"(T103*'League Inputs'!$X$29)+(U103*'League Inputs'!$X$30)","v":0},null,null,null,null,null,null,null,null,null,null,"43",0,{"$f":"IF($J103=F93,1,0)*AL103","v":0},0]
[null,null,null,null,null,null,null,null,null,null,null,null,null,null,null,null,null,{"$f":"F93","v":4},{"$f":"SUM(S94:S103)","v":0},{"$f":"SUM(T94:T103)","v":0},0,0,0,0,0,0]
[]
[]
[null,null,null,null,null,{"$f":"'League Inputs'!$W$13","v":5},null,null,null,null,null,null,null,null,null,null,null,"Week","Played","Won","Drawn","Lost","GF","GA","G + / -","Points",null,null,null,null,null,null,null,null,null,null,"Fixture Code","Played","Home","Away"]
[null,null,null,null,null,null,null,null,null,{"$f":"'League Inputs'!$W$13","v":5},{"$f":"SUMIF($AK$8:$AK$46,$AK108,K$8:K$46)","v":0},"v",{"$f":"SUMIF($AK$8:$AK$46,$AK108,M$8:M$46)","v":0},{"$f":"'League Inputs'!$W$14","v":6},null,null,null,{"$f":"'League Inputs'!$X$17","v":"Week 1"},{"$f":"AL108","v":0},{"$f":"IF(OR(AND(AM108=1,K108>M108),AND(AN108=1,M108>K108)),1,0)","v":0},{"$f":"IF(K108=M108,1,0)*AL108","v":0},{"$f":"(1-SUM(T108:U108))*S108","v":0},{"$f":"(K108*AM108)+(M108*AN108)","v":0},{"$f":"(M108*AM108)+(K108*AN108)","v":0},{"$f":"W108-X108","v":0},{"$f":"(T108*'League Inputs'!$X$29)+(U108*'League Inputs'!$X$30)","v":0},null,null,null,null,null,null,null,null,null,null,{"$f":"J108&N108","v":"56"},{"$f":"SUMIF($AK$8:$AK$46,$AK108,AL$8:AL$46)","v":0},{"$f":"IF($J108=F107,1,0)*AL108","v":0},{"$f":"IF(AM108=1,0,1)*AL108","v":0}]
[null,null,null,null,null,null,null,null,null,{"$f":"'League Inputs'!$W$13","v":5},0,"v",0,{"$f":"'League Inputs'!$W$12","v":4},null,null,null,{"$f":"'League Inputs'!$X$18","v":"Week 2"},0,0,0,{"$f":"(1-SUM(T109:U109))*S109","v":0},0,0,{"$f":"W109-X109","v":0},{"$f":"(T109*'League Inputs'!$X$29)+(U109*'League Inputs'!$X$30)","v":0},null,null,null,null,null,null,null,null,null,null,"54",0,{"$f":"IF($J109=F107,1,0)*AL109","v":0},{"$f":"IF(AM109=1,0,1)*AL109","v":0}]
[null,null,null,null,null,null,null,null,null,{"$f":"'League Inputs'!$W$10","v":2},0,"v",0,{"$f":"'League Inputs'!$W$13","v":5},null,null,null,{"$f":"'League Inputs'!$X$19","v":"Week 3"},0,0,0,0,0,0,0,{"$f":"(T110*'League Inputs'!$X$29)+(U110*'League Inputs'!$X$30)","v":0},null,null,null,null,null,null,null,null,null,null,"25",0,{"$f":"IF($J110=F107,1,0)*AL110","v":0},0]
[null,null,null,null,null,null,null,null,null,{"$f":"'League Inputs'!$W$11","v":3},0,"v",0,{"$f":"'League Inputs'!$W$13","v":5},null,null,null,{"$f":"'League Inputs'!$X$20","v":"Week 4"},0,0,0,0,0,0,0,{"$f":"(T111*'League Inputs'!$X$29)+(U111*'League Inputs'!$X$30)","v":0},null,null,null,null,null,null,null,null,null,null,"35",0,{"$f":"IF($J111=F107,1,0)*AL111","v":0},0]
[null,null,null,null,null,null,null,null,null,{"$f":"'League Inputs'!$W$9","v":1},0,"v",0,{"$f":"'League Inputs'!$W$13","v":5},null,null,null,{"$f":"'League Inputs'!$X$21","v":"Week 5"},0,0,0,0,0,0,0,{"$f":"(T112*'League Inputs'!$X$29)+(U112*'League Inputs'!$X$30)","v":0},null,null,null,null,null,null,null,null,null,null,"15",0,{"$f":"IF($J112=F107,1,0)*AL112","v":0},0]
[null,null,null,null,null,null,null,null,null,{"$f":"$N$24","v":5},0,"v",0,{"$f":"$J$24","v":1},null,null,null,{"$f":"'League Inputs'!$X$22","v":"Week 6"},0,0,0,0,0,0,0,{"$f":"(T113*'League Inputs'!$X$29)+(U113*'League Inputs'!$X$30)","v":0},null,null,null,null,null,null,null,null,null,null,"51",0,{"$f":"IF($J113=F107,1,0)*AL113","v":0},0]
[null,null,null,null,null,null,null,null,null,{"$f":"$N$22","v":5},0,"v",0,{"$f":"$J$22","v":3},null,null,null,{"$f":"'League Inputs'!$X$23","v":"Week 7"},0,0,0,0,0,0,0,{"$f":"(T114*'League Inputs'!$X$29)+(U114*'League Inputs'!$X$30)","v":0},null,null,null,null,null,null,null,null,null,null,"53",0,{"$f":"IF($J114=F107,1,0)*AL114","v":0},0]
[null,null,null,null,null,null,null,null,null,{"$f":"$N$17","v":5},0,"v",0,{"$f":"$J$17","v":2},null,null,null,{"$f":"'League Inputs'!$X$24","v":"Week 8"},0,0,0,0,0,0,0,{"$f":"(T115*'League Inputs'!$X$29)+(U115*'League Inputs'!$X$30)","v":0},null,null,null,null,null,null,null,null,null,null,"52",0,{"$f":"IF($J115=F107,1,0)*AL115","v":0},0]
[null,null,null,null,null,null,null,null,null,{"$f":"$N$12","v":4},0,"v",0,{"$f":"$J$12","v":5},null,null,null,{"$f":"'League Inputs'!$X$25","v":"Week 9"},0,0,0,0,0,0,0,{"$f":"(T116*'League Inputs'!$X$29)+(U116*'League Inputs'!$X$30)","v":0},null,null,null,null,null,null,null,null,null,null,"45",0,{"$f":"IF($J116=F107,1,0)*AL116","v":0},0]
[null,null,null,null,null,null,null,null,null,{"$f":"$N$10","v":6},0,"v",0,{"$f":"$J$10","v":5},null,null,null,{"$f":"'League Inputs'!$X$26","v":"Week 10"},0,0,0,0,0,0,0,{"$f":"(T117*'League Inputs'!$X$29)+(U117*'League Inputs'!$X$30)","v":0},null,null,null,null,null,null,null,null,null,null,"65",0,{"$f":"IF($J117=F107,1,0)*AL117","v":0},0]
[null,null,null,null,null,null,null,null,null,null,null,null,null,null,null,null,null,{"$f":"F107","v":5},{"$f":"SUM(S108:S117)","v":0},{"$f":"SUM(T108:T117)","v":0},0,0,0,0,0,0]
[]
[]
[null,null,null,null,null,{"$f":"'League Inputs'!$W$14","v":6},null,null,null,null,null,null,null,null,null,null,null,"Week","Played","Won","Drawn","Lost","GF","GA","G + / -","Points",null,null,null,null,null,null,null,null,null,null,"Fixture Code","Played","Home","Away"]
[null,null,null,null,null,null,null,null,null,{"$f":"'League Inputs'!$W$13","v":5},{"$f":"SUMIF($AK$8:$AK$46,$AK122,K$8:K$46)","v":0},"v",{"$f":"SUMIF($AK$8:$AK$46,$AK122,M$8:M$46)","v":0},{"$f":"'League Inputs'!$W$14","v":6},null,null,null,{"$f":"'League Inputs'!$X$17","v":"Week 1"},{"$f":"AL122","v":0},{"$f":"IF(OR(AND(AM122=1,K122>M122),AND(AN122=1,M122>K122)),1,0)","v":0},{"$f":"IF(K122=M122,1,0)*AL122","v":0},{"$f":"(1-SUM(T122:U122))*S122","v":0},{"$f":"(K122*AM122)+(M122*AN122)","v":0},{"$f":"(M122*AM122)+(K122*AN122)","v":0},{"$f":"W122-X122","v":0},{"$f":"(T122*'League Inputs'!$X$29)+(U122*'League Inputs'!$X$30)","v":0},null,null,null,null,null,null,null,null,null,null,{"$f":"J122&N122","v":"56"},{"$f":"SUMIF($AK$8:$AK$46,$AK122,AL$8:AL$46)","v":0},{"$f":"IF($J122=F121,1,0)*AL122","v":0},{"$f":"IF(AM122=1,0,1)*AL122","v":0}]
[null,null,null,null,null,null,null,null,null,{"$f":"'League Inputs'!$W$9","v":1},0,"v",0,{"$f":"'League Inputs'!$W$14","v":6},null,null,null,{"$f":"'League Inputs'!$X$18","v":"Week 2"},0,0,0,{"$f":"(1-SUM(T123:U123))*S123","v":0},0,0,{"$f":"W123-X123","v":0},{"$f":"(T123*'League Inputs'!$X$29)+(U123*'League Inputs'!$X$30)","v":0},null,null,null,null,null,null,null,null,null,null,"16",0,{"$f":"IF($J123=F121,1,0)*AL123","v":0},{"$f":"IF(AM123=1,0,1)*AL123","v":0}]
[null,null,null,null,null,null,null,null,null,{"$f":"'League Inputs'!$W$14","v":6},0,"v",0,{"$f":"'League Inputs'!$W$12","v":4},null,null,null,{"$f":"'League Inputs'!$X$19","v":"Week 3"},0,0,0,0,0,0,0,{"$f":"(T124*'League Inputs'!$X$29)+(U124*'League Inputs'!$X$30)","v":0},null,null,null,null,null,null,null,null,null,null,"64",0,{"$f":"IF($J124=F121,1,0)*AL124","v":0},0]
[null,null,null,null,null,null,null,null,null,{"$f":"'League Inputs'!$W$10","v":2},0,"v",0,{"$f":"'League Inputs'!$W$14","v":6},null,null,null,{"$f":"'League Inputs'!$X$20","v":"Week 4"},0,0,0,0,0,0,0,{"$f":"(T125*'League Inputs'!$X$29)+(U125*'League Inputs'!$X$30)","v":0},null,null,null,null,null,null,null,null,null,null,"26",0,{"$f":"IF($J125=F121,1,0)*AL125","v":0},0]
[null,null,null,null,null,null,null,null,null,{"$f":"'League Inputs'!$W$14","v":6},0,"v",0,{"$f":"'League Inputs'!$W$11","v":3},null,null,null,{"$f":"'League Inputs'!$X$21","v":"Week 5"},0,0,0,0,0,0,0,{"$f":"(T126*'League Inputs'!$X$29)+(U126*'League Inputs'!$X$30)","v":0},null,null,null,null,null,null,null,null,null,null,"63",0,{"$f":"IF($J126=F121,1,0)*AL126","v":0},0]
[null,null,null,null,null,null,null,null,null,{"$f":"$N$25","v":3},0,"v",0,{"$f":"$J$25","v":6},null,null,null,{"$f":"'League Inputs'!$X$22","v":"Week 6"},0,0,0,0,0,0,0,{"$f":"(T127*'League Inputs'!$X$29)+(U127*'League Inputs'!$X$30)","v":0},null,null,null,null,null,null,null,null,null,null,"36",0,{"$f":"IF($J127=F121,1,0)*AL127","v":0},0]
[null,null,null,null,null,null,null,null,null,{"$f":"$N$20","v":6},0,"v",0,{"$f":"$J$20","v":2},null,null,null,{"$f":"'League Inputs'!$X$23","v":"Week 7"},0,0,0,0,0,0,0,{"$f":"(T128*'League Inputs'!$X$29)+(U128*'League Inputs'!$X$30)","v":0},null,null,null,null,null,null,null,null,null,null,"62",0,{"$f":"IF($J128=F121,1,0)*AL128","v":0},0]
[null,null,null,null,null,null,null,null,null,{"$f":"$N$18","v":4},0,"v",0,{"$f":"$J$18","v":6},null,null,null,{"$f":"'League Inputs'!$X$24","v":"Week 8"},0,0,0,0,0,0,0,{"$f":"(T129*'League Inputs'!$X$29)+(U129*'League Inputs'!$X$30)","v":0},null,null,null,null,null,null,null,null,null,null,"46",0,{"$f":"IF($J129=F121,1,0)*AL129","v":0},0]
[null,null,null,null,null,null,null,null,null,{"$f":"$N$13","v":6},0,"v",0,{"$f":"$J$13","v":1},null,null,null,{"$f":"'League Inputs'!$X$25","v":"Week 9"},0,0,0,0,0,0,0,{"$f":"(T130*'League Inputs'!$X$29)+(U130*'League Inputs'!$X$30)","v":0},null,null,null,null,null,null,null,null,null,null,"61",0,{"$f":"IF($J130=F121,1,0)*AL130","v":0},0]
[null,null,null,null,null,null,null,null,null,{"$f":"$N$10","v":6},0,"v",0,{"$f":"$J$10","v":5},null,null,null,{"$f":"'League Inputs'!$X$26","v":"Week 10"},0,0,0,0,0,0,0,{"$f":"(T131*'League Inputs'!$X$29)+(U131*'League Inputs'!$X$30)","v":0},null,null,null,null,null,null,null,null,null,null,"65",0,{"$f":"IF($J131=F121,1,0)*AL131","v":0},0]
[null,null,null,null,null,null,null,null,null,null,null,null,null,null,null,null,null,{"$f":"F121","v":6},{"$f":"SUM(S122:S131)","v":0},{"$f":"SUM(T122:T131)","v":0},0,0,0,0,0,0]
[]
[]
[]
[null,null,"END OF SHEET"]